[Event "*** Titled Tuesday 3|2 Blitz"]
[Site "Chess.com"]
[Date "2015.02.24"]
[Round "5"]
[White "BjarkeSahl"]
[Black "ChessTrener"]
[Result "0-1"]
[WhiteElo "2131"]
[BlackElo "2474"]
[TimeControl "180+2"]
[EndTime "12:00:04 PST"]
[Termination "ChessTrener won on time"]

1. e4 {[%clk 0:02:56.9]} 1... d6 {[%clk 0:02:56.6]} 2. d4 {[%clk 0:02:56.3]}
2... Nf6 {[%clk 0:02:56.2]} 3. Nc3 {[%clk 0:02:55.5]} 3... e5 {[%clk 0:02:57.7]}
4. Nf3 {[%clk 0:02:51.8]} 4... Nbd7 {[%clk 0:02:57.7]} 5. a4 {[%clk 0:02:52.5]}
5... Be7 {[%clk 0:02:54.9]} 6. Bc4 {[%clk 0:02:52.3]} 6... O-O {[%clk
0:02:56.2]} 7. O-O {[%clk 0:02:48.8]} 7... a6 {[%clk 0:02:57.3]} 8. Re1 {[%clk
0:02:47.4]} 8... b6 {[%clk 0:02:58.4]} 9. h3 {[%clk 0:02:42.3]} 9... Bb7 {[%clk
0:02:59.3]} 10. Ba2 {[%clk 0:02:41.2]} 10... c6 {[%clk 0:03:00.3]} 11. Nh4
{[%clk 0:02:24.9]} 11... Re8 {[%clk 0:02:58.2]} 12. Nf5 {[%clk 0:02:23.9]} 12...
Bf8 {[%clk 0:02:59.3]} 13. dxe5 {[%clk 0:02:21.8]} 13... Nxe5 {[%clk 0:02:56.1]}
14. Bf4 {[%clk 0:02:02.6]} 14... b5 {[%clk 0:02:53.9]} 15. Bg5 {[%clk 0:01:45]}
15... h6 {[%clk 0:02:51.9]} 16. Bh4 {[%clk 0:01:32.5]} 16... b4 {[%clk
0:02:52.9]} 17. Nb1 {[%clk 0:01:32.7]} 17... Ng6 {[%clk 0:02:53.7]} 18. Nd2
{[%clk 0:01:26.3]} 18... c5 {[%clk 0:02:51.9]} 19. Qf3 {[%clk 0:01:19]} 19...
Nxh4 {[%clk 0:02:34.9]} 20. Nxh4 {[%clk 0:01:19.5]} 20... Re5 {[%clk 0:01:49]}
21. Ng6 {[%clk 0:01:09.8]} 21... Qe8 {[%clk 0:01:45.7]} 22. Nxe5 {[%clk
0:00:52]} 22... Qxe5 {[%clk 0:01:45.6]} 23. Nc4 {[%clk 0:00:51.9]} 23... Qg5
{[%clk 0:01:46.4]} 24. Rad1 {[%clk 0:00:39.3]} 24... d5 {[%clk 0:01:23.1]} 25.
exd5 {[%clk 0:00:26.3]} 25... Bxd5 {[%clk 0:01:24.3]} 26. Rxd5 {[%clk
0:00:14.2]} 26... Qxd5 {[%clk 0:01:20.9]} 27. Qxd5 {[%clk 0:00:02.6]} 27... Nxd5
{[%clk 0:01:21.9]} 28. Ne5 {[%clk 0:00:03.8]} 28... Ne7 {[%clk 0:01:05.1]} 0-1

[Event "*** Titled Tuesday 3|2 Blitz"]
[Site "Chess.com"]
[Date "2015.02.24"]
[Round "5"]
[White "destroyer305"]
[Black "PauloCesarCosta"]
[Result "0-1"]
[WhiteElo "2123"]
[BlackElo "2065"]
[TimeControl "180+2"]
[EndTime "12:00:38 PST"]
[Termination "PauloCesarCosta won by resignation"]

1. e4 {[%clk 0:03:00]} 1... e6 {[%clk 0:02:59]} 2. d4 {[%clk 0:03:00.8]} 2... d5
{[%clk 0:03:00.5]} 3. Nc3 {[%clk 0:03:02.7]} 3... Nf6 {[%clk 0:03:00.8]} 4. Bg5
{[%clk 0:03:03.3]} 4... Be7 {[%clk 0:03:00.7]} 5. e5 {[%clk 0:03:02.1]} 5...
Nfd7 {[%clk 0:03:02.2]} 6. Bxe7 {[%clk 0:03:03.1]} 6... Qxe7 {[%clk 0:03:01.4]}
7. f4 {[%clk 0:03:04.6]} 7... O-O {[%clk 0:03:03]} 8. Nf3 {[%clk 0:03:03.5]}
8... c5 {[%clk 0:02:58.9]} 9. Bd3 {[%clk 0:03:03.3]} 9... f6 {[%clk 0:02:53.9]}
10. dxc5 {[%clk 0:02:59.5]} 10... Nxc5 {[%clk 0:02:51.6]} 11. Qe2 {[%clk
0:02:56.9]} 11... Nc6 {[%clk 0:02:50.4]} 12. O-O {[%clk 0:02:55.2]} 12... Nxd3
{[%clk 0:02:47.4]} 13. cxd3 {[%clk 0:02:53.3]} 13... Bd7 {[%clk 0:02:48.8]} 14.
Rae1 {[%clk 0:02:50.4]} 14... Rae8 {[%clk 0:02:47.3]} 15. Qf2 {[%clk 0:02:47.5]}
15... fxe5 {[%clk 0:02:40.1]} 16. Nxe5 {[%clk 0:02:47.6]} 16... Nxe5 {[%clk
0:02:38.5]} 17. Rxe5 {[%clk 0:02:48.3]} 17... Qb4 {[%clk 0:02:26.5]} 18. a3
{[%clk 0:02:17.5]} 18... Qd6 {[%clk 0:02:15.5]} 19. Qxa7 {[%clk 0:02:07.8]}
19... Rxf4 {[%clk 0:02:09.9]} 20. Rfe1 {[%clk 0:01:55.5]} 20... Qc6 {[%clk
0:01:48.4]} 21. Qe3 {[%clk 0:01:45.4]} 21... Ref8 {[%clk 0:01:47.2]} 22. Qg3
{[%clk 0:01:35.2]} 22... Qb6+ {[%clk 0:01:41.5]} 23. Qe3 {[%clk 0:01:29.6]}
23... Qxe3+ {[%clk 0:01:38.1]} 24. R5xe3 {[%clk 0:01:23.5]} 24... d4 {[%clk
0:01:38.2]} 25. Re5 {[%clk 0:01:12.9]} 25... dxc3 {[%clk 0:01:38.5]} 26. bxc3
{[%clk 0:01:14.8]} 26... R4f5 {[%clk 0:01:35.1]} 27. R5e4 {[%clk 0:01:14]} 27...
Ra5 {[%clk 0:01:33.9]} 28. Rb4 {[%clk 0:01:11.8]} 28... Bc6 {[%clk 0:01:32.6]}
29. Rxe6 {[%clk 0:01:09.5]} 29... Rxa3 {[%clk 0:01:33]} 30. h3 {[%clk
0:00:34.2]} 30... Rxc3 {[%clk 0:01:32.3]} 31. Rd4 {[%clk 0:00:29.3]} 31... Rc1+
{[%clk 0:01:31.5]} 32. Kh2 {[%clk 0:00:29.7]} 32... Rc2 {[%clk 0:01:32.5]} 33.
Rg4 {[%clk 0:00:28.7]} 33... Rff2 {[%clk 0:01:28.6]} 34. h4 {[%clk 0:00:19.3]}
34... Rxg2+ {[%clk 0:01:28.5]} 35. Rxg2 {[%clk 0:00:20.6]} 35... Rxg2+ {[%clk
0:01:29.2]} 36. Kh3 {[%clk 0:00:22.5]} 36... Rd2 {[%clk 0:01:26.6]} 37. Rd6
{[%clk 0:00:23.4]} 37... Kf7 {[%clk 0:01:23.1]} 38. Kg4 {[%clk 0:00:23.1]} 38...
Ke7 {[%clk 0:01:23.8]} 39. Rd4 {[%clk 0:00:24.1]} 39... Bd7+ {[%clk 0:01:22.2]}
40. Kf4 {[%clk 0:00:22.9]} 40... b5 {[%clk 0:01:20.8]} 41. h5 {[%clk 0:00:24.1]}
41... Rh2 {[%clk 0:01:20.8]} 42. h6 {[%clk 0:00:24.9]} 42... Rh4+ {[%clk
0:01:17.8]} 43. Ke5 {[%clk 0:00:22.2]} 43... Rxd4 {[%clk 0:01:17.1]} 44. Kxd4
{[%clk 0:00:21.8]} 44... gxh6 {[%clk 0:01:17.3]} 0-1

[Event "*** Titled Tuesday 3|2 Blitz"]
[Site "Chess.com"]
[Date "2015.02.24"]
[Round "5"]
[White "AnthonyWirig"]
[Black "Cryptochess"]
[Result "1-0"]
[WhiteElo "2550"]
[BlackElo "2386"]
[TimeControl "180+2"]
[EndTime "12:00:47 PST"]
[Termination "AnthonyWirig won by checkmate"]

1. d4 {[%clk 0:03:00]} 1... Nf6 {[%clk 0:02:58.9]} 2. Nc3 {[%clk 0:03:01]} 2...
e6 {[%clk 0:03:00.5]} 3. Nf3 {[%clk 0:02:55]} 3... Bb4 {[%clk 0:03:00.4]} 4. Qd3
{[%clk 0:02:49.9]} 4... O-O {[%clk 0:02:56.6]} 5. Bg5 {[%clk 0:02:45.1]} 5... h6
{[%clk 0:02:53.8]} 6. h4 {[%clk 0:02:38.7]} 6... b6 {[%clk 0:02:41.5]} 7. Bxf6
{[%clk 0:02:22]} 7... Qxf6 {[%clk 0:02:39.3]} 8. g4 {[%clk 0:02:17.8]} 8... Ba6
{[%clk 0:02:31.8]} 9. Qe3 {[%clk 0:02:11.9]} 9... Qg6 {[%clk 0:02:18.9]} 10.
O-O-O {[%clk 0:02:01]} 10... Nc6 {[%clk 0:01:56.7]} 11. Rg1 {[%clk 0:01:06.9]}
11... f5 {[%clk 0:01:07.1]} 12. h5 {[%clk 0:00:55.9]} 12... Qf6 {[%clk 0:00:56]}
13. g5 {[%clk 0:00:56.8]} 13... hxg5 {[%clk 0:00:54.4]} 14. Rxg5 {[%clk
0:00:55.9]} 14... Ne7 {[%clk 0:00:45.8]} 15. a3 {[%clk 0:00:43.2]} 15... Bxc3
{[%clk 0:00:44.9]} 16. Qxc3 {[%clk 0:00:45.1]} 16... Nd5 {[%clk 0:00:45.3]} 17.
Qd2 {[%clk 0:00:43.9]} 17... Rac8 {[%clk 0:00:35.9]} 18. e3 {[%clk 0:00:44.3]}
18... Bxf1 {[%clk 0:00:35.3]} 19. Rxf1 {[%clk 0:00:46.2]} 19... c5 {[%clk
0:00:36.4]} 20. Rfg1 {[%clk 0:00:47.4]} 20... Rf7 {[%clk 0:00:33.6]} 21. Ne5
{[%clk 0:00:45.8]} 21... Re7 {[%clk 0:00:34.1]} 22. Ng6 {[%clk 0:00:44]} 22...
Rf7 {[%clk 0:00:32.7]} 23. Ne5 {[%clk 0:00:39.1]} 23... Re7 {[%clk 0:00:31.1]}
24. Kb1 {[%clk 0:00:40.2]} 24... cxd4 {[%clk 0:00:31.8]} 25. exd4 {[%clk
0:00:42.1]} 25... d6 {[%clk 0:00:29.9]} 26. Ng6 {[%clk 0:00:40.5]} 26... Rec7
{[%clk 0:00:30.9]} 27. R5g3 {[%clk 0:00:33]} 27... Rxc2 {[%clk 0:00:28.2]} 28.
Qxc2 {[%clk 0:00:34.1]} 28... Rxc2 {[%clk 0:00:29.9]} 29. Kxc2 {[%clk 0:00:36]}
29... Qxd4 {[%clk 0:00:31.4]} 30. h6 {[%clk 0:00:32.8]} 30... gxh6 {[%clk
0:00:09.1]} 31. Ne5+ {[%clk 0:00:21.7]} 31... Kf8 {[%clk 0:00:07.1]} 32. Rg8+
{[%clk 0:00:22.5]} 32... Ke7 {[%clk 0:00:07.6]} 33. R1g7+ {[%clk 0:00:24.1]}
33... Kf6 {[%clk 0:00:08.9]} 34. Nd7# {[%clk 0:00:25.5]} 1-0

[Event "*** Titled Tuesday 3|2 Blitz"]
[Site "Chess.com"]
[Date "2015.02.24"]
[Round "5"]
[White "wonderfultime"]
[Black "pKiLz5Rn9b"]
[Result "1-0"]
[WhiteElo "2554"]
[BlackElo "2248"]
[TimeControl "180+2"]
[EndTime "12:00:47 PST"]
[Termination "wonderfultime won by resignation"]

1. d4 {[%clk 0:03:00]} 1... e6 {[%clk 0:02:59.4]} 2. c4 {[%clk 0:02:54.5]} 2...
Nf6 {[%clk 0:03:00.3]} 3. Nf3 {[%clk 0:02:51.9]} 3... b6 {[%clk 0:03:01.5]} 4.
a3 {[%clk 0:02:49.5]} 4... Bb7 {[%clk 0:02:58.9]} 5. Nc3 {[%clk 0:02:50.4]} 5...
d5 {[%clk 0:03:00.2]} 6. cxd5 {[%clk 0:02:50.6]} 6... exd5 {[%clk 0:03:01.3]} 7.
Bf4 {[%clk 0:02:51]} 7... Bd6 {[%clk 0:03:00.9]} 8. Bg3 {[%clk 0:02:52.2]} 8...
O-O {[%clk 0:03:01.5]} 9. e3 {[%clk 0:02:53.6]} 9... c5 {[%clk 0:03:01.6]} 10.
Be2 {[%clk 0:02:53.3]} 10... Nc6 {[%clk 0:03:01.6]} 11. O-O {[%clk 0:02:54.7]}
11... Bxg3 {[%clk 0:03:00.8]} 12. hxg3 {[%clk 0:02:55.8]} 12... Re8 {[%clk
0:02:59.2]} 13. Rc1 {[%clk 0:02:56.9]} 13... Ne4 {[%clk 0:02:55.2]} 14. dxc5
{[%clk 0:02:57.1]} 14... Nxc5 {[%clk 0:02:56.1]} 15. Nxd5 {[%clk 0:02:53.8]}
15... Ne5 {[%clk 0:02:54.4]} 16. Nxe5 {[%clk 0:02:52]} 16... Rxe5 {[%clk
0:02:54.4]} 17. Nf4 {[%clk 0:02:52.8]} 17... Qf6 {[%clk 0:02:50.3]} 18. b4
{[%clk 0:02:52.3]} 18... Rd8 {[%clk 0:02:50.1]} 19. Qc2 {[%clk 0:02:53.3]} 19...
Ne6 {[%clk 0:02:35.8]} 20. Rfd1 {[%clk 0:02:52.3]} 20... Re8 {[%clk 0:02:32]}
21. Qa4 {[%clk 0:02:46.9]} 21... Ra8 {[%clk 0:02:21.7]} 22. Qd7 {[%clk
0:02:45.4]} 22... Rb8 {[%clk 0:02:11.6]} 23. Nxe6 {[%clk 0:02:44.5]} 23... Qxe6
{[%clk 0:02:03.8]} 24. Rc7 {[%clk 0:02:25.8]} 24... Bd5 {[%clk 0:01:32.4]} 25.
Rxa7 {[%clk 0:01:57.4]} 25... h6 {[%clk 0:01:29.2]} 26. Bg4 {[%clk 0:01:46.6]}
26... f5 {[%clk 0:01:12.2]} 27. Qxe6+ {[%clk 0:01:30.9]} 27... Bxe6 {[%clk
0:01:11.5]} 28. Bf3 {[%clk 0:01:32.2]} 28... Kh7 {[%clk 0:01:09.3]} 29. Rd6
{[%clk 0:01:30.2]} 29... Bc4 {[%clk 0:01:06.5]} 30. Rdd7 {[%clk 0:01:29.6]}
30... Rg8 {[%clk 0:01:05.4]} 31. a4 {[%clk 0:01:31.1]} 31... Kg6 {[%clk
0:00:58.5]} 32. Rd6+ {[%clk 0:01:31.1]} 32... Kg5 {[%clk 0:00:59.4]} 33. Be2
{[%clk 0:01:22.6]} 33... Bxe2 {[%clk 0:00:54.3]} 34. f4+ {[%clk 0:01:23.6]}
34... Kg4 {[%clk 0:00:55.9]} 35. fxe5 {[%clk 0:01:23]} 35... Kxg3 {[%clk
0:00:57.3]} 36. e6 {[%clk 0:01:18.9]} 36... Rc8 {[%clk 0:00:55.3]} 37. Rxg7+
{[%clk 0:01:19.7]} 37... Bg4 {[%clk 0:00:55.9]} 38. Rd1 {[%clk 0:01:17.2]} 38...
Rc2 {[%clk 0:00:55.2]} 39. Rxg4+ {[%clk 0:01:15.4]} 39... fxg4 {[%clk 0:00:56]}
40. e7 {[%clk 0:01:16.6]} 40... Rxg2+ {[%clk 0:00:56.9]} 41. Kf1 {[%clk
0:01:18]} 41... Rf2+ {[%clk 0:00:43.7]} 42. Ke1 {[%clk 0:01:19.2]} 42... Kf3
{[%clk 0:00:35.6]} 43. e8=Q {[%clk 0:01:14.9]} 43... Re2+ {[%clk 0:00:36.6]} 44.
Kf1 {[%clk 0:01:16.4]} 44... Rf2+ {[%clk 0:00:38.3]} 45. Kg1 {[%clk 0:01:18]}
45... Rg2+ {[%clk 0:00:39.8]} 46. Kh1 {[%clk 0:01:19.6]} 46... Kg3 {[%clk
0:00:38.5]} 47. Qe5+ {[%clk 0:01:20.3]} 47... Kh3 {[%clk 0:00:39.7]} 48. Qh5+
{[%clk 0:01:20.7]} 48... Kg3 {[%clk 0:00:40.9]} 49. Qxg4+ {[%clk 0:01:21.9]}
49... Kxg4 {[%clk 0:00:41.9]} 50. Kxg2 {[%clk 0:01:23.8]} 1-0

[Event "*** Titled Tuesday 3|2 Blitz"]
[Site "Chess.com"]
[Date "2015.02.24"]
[Round "5"]
[White "DoctorMove"]
[Black "Hafez_Bakr"]
[Result "1-0"]
[WhiteElo "1767"]
[BlackElo "1822"]
[TimeControl "180+2"]
[EndTime "12:00:59 PST"]
[Termination "DoctorMove won by resignation"]

1. e4 {[%clk 0:03:00]} 1... c5 {[%clk 0:02:52.2]} 2. Nf3 {[%clk 0:03:00.1]} 2...
d6 {[%clk 0:02:53.1]} 3. Bb5+ {[%clk 0:02:55.8]} 3... Bd7 {[%clk 0:02:52.5]} 4.
Bxd7+ {[%clk 0:02:56.5]} 4... Nxd7 {[%clk 0:02:53.5]} 5. O-O {[%clk 0:02:57.6]}
5... Ngf6 {[%clk 0:02:54.5]} 6. Re1 {[%clk 0:02:58.7]} 6... g6 {[%clk
0:02:55.5]} 7. c3 {[%clk 0:03:00]} 7... Bg7 {[%clk 0:02:56.5]} 8. d4 {[%clk
0:03:01.2]} 8... O-O {[%clk 0:02:55]} 9. Bg5 {[%clk 0:02:55.4]} 9... cxd4 {[%clk
0:02:54.3]} 10. Nxd4 {[%clk 0:02:48.6]} 10... Qb6 {[%clk 0:02:54]} 11. Nb3
{[%clk 0:02:41.7]} 11... Rfe8 {[%clk 0:02:52.6]} 12. h3 {[%clk 0:02:31]} 12...
Rad8 {[%clk 0:02:45.7]} 13. N1d2 {[%clk 0:02:30.2]} 13... Ne5 {[%clk 0:02:43.4]}
14. Be3 {[%clk 0:02:22.3]} 14... Qa6 {[%clk 0:02:42]} 15. Nf3 {[%clk 0:02:07.4]}
15... Nxe4 {[%clk 0:02:09.9]} 16. Nxe5 {[%clk 0:01:47.3]} 16... dxe5 {[%clk
0:02:09.7]} 17. Qe2 {[%clk 0:01:39.2]} 17... Nd6 {[%clk 0:02:01.7]} 18. Qxa6
{[%clk 0:01:36.1]} 18... bxa6 {[%clk 0:02:02.5]} 19. Bxa7 {[%clk 0:01:35]} 19...
Nc4 {[%clk 0:02:01.6]} 20. Re2 {[%clk 0:01:30.9]} 20... e4 {[%clk 0:01:55.4]}
21. Bd4 {[%clk 0:01:27]} 21... e5 {[%clk 0:01:55.6]} 22. Bc5 {[%clk 0:01:21.4]}
22... f5 {[%clk 0:01:55.1]} 23. Rae1 {[%clk 0:01:09]} 23... a5 {[%clk
0:01:49.1]} 24. f3 {[%clk 0:01:06.6]} 24... exf3 {[%clk 0:01:48]} 25. gxf3
{[%clk 0:01:06.7]} 25... a4 {[%clk 0:01:46.7]} 26. Nc1 {[%clk 0:01:04.5]} 26...
Rd5 {[%clk 0:01:44.4]} 27. Bb4 {[%clk 0:01:02.1]} 27... Nd2 {[%clk 0:01:38.5]}
28. Kg2 {[%clk 0:00:56.9]} 28... e4 {[%clk 0:01:35]} 29. fxe4 {[%clk 0:00:53.4]}
29... Nxe4 {[%clk 0:01:34.4]} 30. a3 {[%clk 0:00:16.4]} 30... Red8 {[%clk
0:01:34]} 31. h4 {[%clk 0:00:16.2]} 31... Rd2 {[%clk 0:01:32.6]} 32. Kf3 {[%clk
0:00:12.9]} 32... Rxe2 {[%clk 0:01:28.9]} 33. Rxe2 {[%clk 0:00:13.4]} 33... Bh6
{[%clk 0:01:27.7]} 34. Re1 {[%clk 0:00:11.8]} 34... Nd2+ {[%clk 0:01:25.2]} 35.
Kf2 {[%clk 0:00:09.8]} 35... Ne4+ {[%clk 0:01:24.8]} 36. Kf3 {[%clk 0:00:11]}
36... Bxc1 {[%clk 0:01:22.4]} 37. Rxc1 {[%clk 0:00:10.7]} 37... Rd2 {[%clk
0:01:23.3]} 38. c4 {[%clk 0:00:11.6]} 38... Rxb2 {[%clk 0:01:19.5]} 39. c5
{[%clk 0:00:12.2]} 39... Rf2+ {[%clk 0:01:18.7]} 40. Ke3 {[%clk 0:00:13.2]}
40... Rh2 {[%clk 0:01:08.2]} 41. c6 {[%clk 0:00:13.7]} 41... Rxh4 {[%clk
0:01:09.4]} 42. c7 {[%clk 0:00:14.7]} 42... Rh3+ {[%clk 0:01:09.9]} 43. Kf4
{[%clk 0:00:15.1]} 43... g5+ {[%clk 0:01:08.8]} 44. Kxf5 {[%clk 0:00:15.5]}
44... Ng3+ {[%clk 0:01:06.4]} 45. Kg4 {[%clk 0:00:15.8]} 45... Rh4+ {[%clk
0:01:06.6]} 46. Kxg3 {[%clk 0:00:16.9]} 1-0

[Event "*** Titled Tuesday 3|2 Blitz"]
[Site "Chess.com"]
[Date "2015.02.24"]
[Round "5"]
[White "Nouki"]
[Black "Gevorg_Harutjunyan"]
[Result "1-0"]
[WhiteElo "2655"]
[BlackElo "2520"]
[TimeControl "180+2"]
[EndTime "12:01:00 PST"]
[Termination "Nouki won by checkmate"]

1. d4 {[%clk 0:03:00]} 1... Nf6 {[%clk 0:02:58.8]} 2. c4 {[%clk 0:03:00.7]} 2...
g6 {[%clk 0:02:59.5]} 3. Nc3 {[%clk 0:03:01]} 3... Bg7 {[%clk 0:03:00.3]} 4. e4
{[%clk 0:03:01.4]} 4... d6 {[%clk 0:03:01.5]} 5. Nf3 {[%clk 0:03:02.3]} 5... O-O
{[%clk 0:03:02.5]} 6. Be2 {[%clk 0:03:03.9]} 6... e5 {[%clk 0:03:03.5]} 7. O-O
{[%clk 0:03:05.3]} 7... Nbd7 {[%clk 0:03:03.2]} 8. Be3 {[%clk 0:03:05.2]} 8...
c6 {[%clk 0:03:04]} 9. d5 {[%clk 0:03:05.3]} 9... c5 {[%clk 0:03:02]} 10. Ne1
{[%clk 0:03:06.4]} 10... Ne8 {[%clk 0:03:02.3]} 11. g4 {[%clk 0:03:07.3]} 11...
Nc7 {[%clk 0:03:01.1]} 12. Kh1 {[%clk 0:03:04.7]} 12... Bf6 {[%clk 0:03:01.6]}
13. Qd2 {[%clk 0:03:04.4]} 13... a6 {[%clk 0:02:52]} 14. a4 {[%clk 0:03:04.6]}
14... Rb8 {[%clk 0:02:53.2]} 15. Nd3 {[%clk 0:02:12.7]} 15... b6 {[%clk
0:02:37.7]} 16. Rae1 {[%clk 0:01:51.5]} 16... Bb7 {[%clk 0:02:38.3]} 17. g5
{[%clk 0:01:47.8]} 17... Bg7 {[%clk 0:02:37.5]} 18. f4 {[%clk 0:01:47.6]} 18...
exf4 {[%clk 0:02:30.3]} 19. Bxf4 {[%clk 0:01:49.5]} 19... Qe7 {[%clk 0:02:30.7]}
20. Bg4 {[%clk 0:01:48.7]} 20... Rbe8 {[%clk 0:02:27]} 21. Bxd7 {[%clk
0:01:43.2]} 21... Qxd7 {[%clk 0:02:28.2]} 22. e5 {[%clk 0:01:40.8]} 22... dxe5
{[%clk 0:02:19.5]} 23. Bxe5 {[%clk 0:01:40.5]} 23... Rxe5 {[%clk 0:01:53.4]} 24.
Nxe5 {[%clk 0:01:34.4]} 24... Qd6 {[%clk 0:01:54.6]} 25. Ng4 {[%clk 0:01:16.3]}
25... b5 {[%clk 0:01:44.2]} 26. Ne4 {[%clk 0:01:13.3]} 26... Qd8 {[%clk
0:01:20.6]} 27. Ngf6+ {[%clk 0:01:08.2]} 27... Kh8 {[%clk 0:01:22]} 28. b3
{[%clk 0:01:02.9]} 28... bxc4 {[%clk 0:01:20.4]} 29. bxc4 {[%clk 0:01:03.7]}
29... Ne6 {[%clk 0:01:21.7]} 30. Kg1 {[%clk 0:00:56.9]} 30... Nd4 {[%clk
0:00:56.4]} 31. Nxc5 {[%clk 0:00:51.1]} 31... Nf5 {[%clk 0:00:57.3]} 32. Nxb7
{[%clk 0:00:40.7]} 32... Qb6+ {[%clk 0:00:57.7]} 33. c5 {[%clk 0:00:41.6]} 33...
Qxb7 {[%clk 0:00:58.8]} 34. Qc3 {[%clk 0:00:29.4]} 34... Qc8 {[%clk 0:00:51]}
35. Rf4 {[%clk 0:00:24.4]} 35... h6 {[%clk 0:00:48.6]} 36. h4 {[%clk 0:00:22.2]}
36... Qc7 {[%clk 0:00:42.3]} 37. Rxf5 {[%clk 0:00:14.5]} 37... gxf5 {[%clk
0:00:43.2]} 38. gxh6 {[%clk 0:00:16.1]} 38... Rg8 {[%clk 0:00:40.2]} 39. hxg7+
{[%clk 0:00:17.4]} 39... Rxg7+ {[%clk 0:00:41.6]} 40. Kf1 {[%clk 0:00:19.3]}
40... Qh2 {[%clk 0:00:38.6]} 41. Re8+ {[%clk 0:00:19.3]} 41... Rg8 {[%clk
0:00:38.6]} 42. Rxg8# {[%clk 0:00:20.8]} 1-0

[Event "*** Titled Tuesday 3|2 Blitz"]
[Site "Chess.com"]
[Date "2015.02.24"]
[Round "5"]
[White "igorkovalenko"]
[Black "Chesseducation4u"]
[Result "1-0"]
[WhiteElo "2446"]
[BlackElo "2224"]
[TimeControl "180+2"]
[EndTime "12:01:24 PST"]
[Termination "igorkovalenko won by resignation"]

1. e4 {[%clk 0:02:57.4]} 1... e6 {[%clk 0:02:58.3]} 2. d4 {[%clk 0:02:58.3]}
2... d5 {[%clk 0:02:59.3]} 3. Nd2 {[%clk 0:03:00]} 3... h6 {[%clk 0:02:58.2]} 4.
Ngf3 {[%clk 0:02:59.4]} 4... Nf6 {[%clk 0:02:56.1]} 5. exd5 {[%clk 0:02:59.7]}
5... exd5 {[%clk 0:02:55.9]} 6. Bd3 {[%clk 0:03:01.3]} 6... c5 {[%clk
0:02:54.4]} 7. O-O {[%clk 0:03:01.4]} 7... Nc6 {[%clk 0:02:19.9]} 8. Re1+ {[%clk
0:03:02.4]} 8... Be6 {[%clk 0:02:20.9]} 9. Bf5 {[%clk 0:02:54.7]} 9... cxd4
{[%clk 0:02:20.8]} 10. Bxe6 {[%clk 0:02:53.6]} 10... fxe6 {[%clk 0:02:21.8]} 11.
Rxe6+ {[%clk 0:02:54.7]} 11... Kf7 {[%clk 0:02:23]} 12. Re1 {[%clk 0:02:51.9]}
12... Bb4 {[%clk 0:02:14]} 13. a3 {[%clk 0:02:52.8]} 13... Ba5 {[%clk
0:02:14.8]} 14. b4 {[%clk 0:02:54]} 14... Bb6 {[%clk 0:02:15.9]} 15. Bb2 {[%clk
0:02:54.9]} 15... Re8 {[%clk 0:01:49.2]} 16. b5 {[%clk 0:02:55.4]} 16... Rxe1+
{[%clk 0:01:45.1]} 17. Qxe1 {[%clk 0:02:56.3]} 17... Na5 {[%clk 0:01:44]} 18.
Bxd4 {[%clk 0:02:56.7]} 18... Rc8 {[%clk 0:01:40.3]} 19. c3 {[%clk 0:02:41.5]}
19... Qe8 {[%clk 0:01:33]} 20. Ne5+ {[%clk 0:02:37.4]} 20... Kg8 {[%clk
0:01:33.2]} 21. a4 {[%clk 0:02:36.2]} 21... Bxd4 {[%clk 0:01:27.3]} 22. cxd4
{[%clk 0:02:38.1]} 22... Rc2 {[%clk 0:01:27.3]} 23. Rc1 {[%clk 0:02:35.2]} 23...
Qc8 {[%clk 0:01:27.7]} 24. Rxc2 {[%clk 0:02:36.3]} 24... Qxc2 {[%clk 0:01:29.6]}
25. Nf1 {[%clk 0:02:21.2]} 25... Qxa4 {[%clk 0:01:28.4]} 26. Ng6 {[%clk
0:02:01.9]} 26... Qxb5 {[%clk 0:01:10.1]} 27. Qe6+ {[%clk 0:02:00.6]} 27... Kh7
{[%clk 0:01:09.6]} 28. Qf5 {[%clk 0:01:47.8]} 28... Kg8 {[%clk 0:01:09.1]} 29.
h4 {[%clk 0:01:43]} 29... Qd7 {[%clk 0:01:04.8]} 30. Qf4 {[%clk 0:01:39.5]}
30... Nc6 {[%clk 0:01:00.8]} 31. Ne3 {[%clk 0:01:40.5]} 31... Qe8 {[%clk
0:00:51.1]} 32. Ne5 {[%clk 0:01:40.3]} 32... a5 {[%clk 0:00:48.7]} 33. Nf5
{[%clk 0:01:29.9]} 33... a4 {[%clk 0:00:21.9]} 34. Qg3 {[%clk 0:01:10]} 34...
Nh5 {[%clk 0:00:20.2]} 35. Nxh6+ {[%clk 0:01:02.1]} 35... Kh7 {[%clk 0:00:21.3]}
36. Qd3+ {[%clk 0:01:03.3]} 36... g6 {[%clk 0:00:19.7]} 37. Nhf7 {[%clk
0:01:02.6]} 37... Nxe5 {[%clk 0:00:20.4]} 38. Nxe5 {[%clk 0:01:04.5]} 38... b5
{[%clk 0:00:18.1]} 39. Qc3 {[%clk 0:00:59.4]} 39... Nf4 {[%clk 0:00:17.1]} 40.
Qc7+ {[%clk 0:00:59]} 40... Kg8 {[%clk 0:00:16.2]} 41. Qd6 {[%clk 0:00:58.3]}
41... Qe6 {[%clk 0:00:09.9]} 42. Qd8+ {[%clk 0:00:54]} 42... Kg7 {[%clk
0:00:09.7]} 43. Qc7+ {[%clk 0:00:54.9]} 43... Kh6 {[%clk 0:00:07.2]} 44. Nf7+
{[%clk 0:00:55.3]} 44... Kh5 {[%clk 0:00:08.4]} 45. Qxf4 {[%clk 0:00:55.4]} 1-0